bitfinex-derivatives/quotes_ETHF0:USTF0_20250505
["timestamp","ask_amount","ask_price","bid_price","bid_amount"]
[1746462674452,1.679,1809.7,1809.6,53.00641533]
[1746462675348,1.679,1809.7,1809.6,56.21421533]
[1746462675655,1.10494,1810.2,1810.1,1.10496]
[1746462675853,1.6528,1810.2,1810.1,12.20610533]
[1746462676447,2.7577,1810.2,1810.1,12.20610533]
[1746462677453,2.7577,1810.2,1810.1,11.10114533]
[1746462677653,2.7577,1810.2,1810.1,12.20610533]
[1746462678847,1.6528,1810.2,1810.1,12.20610533]
[1746462679048,2.7577,1810.2,1810.1,12.20610533]
[1746462679255,3.3245,1810.2,1810.1,12.20610533]
[1746462679552,4.4294,1810.2,1810.1,12.20610533]
[1746462680256,3.3245,1810.2,1810.1,12.20610533]
[1746462680450,1.6717,1810.2,1810.1,14.66030533]
[1746462681449,2.7766,1810.2,1810.1,14.66030533]
[1746462681757,2.7766,1810.2,1810.1,11.10114533]
[1746462682453,1.10496,1810.1,1810.0,2.663]
[1746462682652,4.38956,1810.1,1810.0,2.663]
[1746462682850,12.59736,1810.1,1810.0,2.663]
[1746462683054,1.10521,1809.7,1809.6,41.90523]
[1746462683245,1.10521,1809.7,1809.6,40.8]
[1746462683752,4.37899,1809.8,1809.7,1.10521]
[1746462683954,2.73899,1809.8,1809.7,1.10521]
[1746462684249,1.6338,1809.8,1809.7,12.20635533]
[1746462684556,0.8068,1809.8,1809.7,12.20635533]
[1746462684756,0.8068,1809.8,1809.7,14.62645533]
[1746462685154,1.93204,1810.0,1809.9,1.10508]
[1746462685346,1.10508,1809.9,1809.8,12.20624533]
[1746462685547,1.10508,1809.9,1809.8,11.10114533]
[1746462685758,0.827,1810.0,1809.7,4.83716]
[1746462685759,1.10514,1809.8,1809.7,4.83716]
[1746462686152,1.10513,1809.9,1809.8,1.10511]
[1746462686353,1.10513,1809.9,1809.8,12.20625533]
[1746462686557,0.827,1810.0,1809.9,1.10508]
[1746462686858,1.91176,1810.1,1810.0,1.10502]
[1746462687058,2.71436,1810.1,1810.0,12.20616533]
[1746462687260,2.71436,1810.1,1810.0,1.10502]
[1746462688661,1.6094,1810.1,1810.0,1.10502]
[1746462688858,1.10488,1810.3,1810.2,1.10489]
[1746462689162,1.10488,1810.3,1810.1,1.10491]
[1746462689163,1.10491,1810.2,1810.1,1.10491]
[1746462689557,1.10491,1810.2,1810.1,12.20605533]
[1746462690960,0.8195,1810.3,1810.2,1.1049]
[1746462691166,4.31263,1810.4,1810.3,1.10484]
[1746462691365,3.2078,1810.4,1810.2,13.84070533]
[1746462691666,3.2078,1810.4,1810.3,1.10484]
[1746462691667,4.31263,1810.4,1810.3,1.10484]
[1746462692868,3.2078,1810.4,1810.3,1.10484]
[1746462693163,2.72863191,1810.5,1810.4,1.10478]
[1746462694062,0.00707191,1810.5,1810.4,13.80642533]
[1746462694258,0.00707191,1810.5,1810.4,19.19902533]
[1746462695563,0.00707191,1810.5,1810.4,63.66002533]
[1746462695763,0.00707191,1810.5,1810.4,66.32302533]
[1746462695968,0.00707191,1810.5,1810.4,71.32302533]
[1746462697559,0.00707191,1810.5,1810.4,66.32302533]
[1746462699261,1.11179191,1810.5,1810.4,44.532]
[1746462699460,1.11179191,1810.5,1810.4,45.63678]
[1746462700068,1.11179191,1810.5,1810.4,40.8]
[1746462700370,1.11179191,1810.5,1810.4,41.90478]
[1746462701967,1.10472,1810.5,1810.4,41.90478]
[1746462703267,2.712,1810.6,1810.5,1.10472]
[1746462703574,1.10472,1810.5,1810.4,53.00588533]
[1746462703762,2.79582,1810.5,1810.4,53.00588533]
[1746462704267,1.6911,1810.5,1810.4,53.00588533]
[1746462705066,1.6911,1810.5,1810.4,54.65208533]
[1746462705272,2.79582,1810.5,1810.4,54.65208533]
[1746462705464,2.79582,1810.5,1810.4,53.00592533]
[1746462705866,1.6911,1810.5,1810.4,54.65212533]
[1746462707171,2.79582,1810.5,1810.4,54.65212533]
[1746462707563,1.6911,1810.5,1810.4,54.65212533]
[1746462708273,2.79582,1810.5,1810.4,54.65212533]
[1746462708474,1.6911,1810.5,1810.4,54.65212533]
[1746462708675,2.79582,1810.5,1810.4,54.65212533]
[1746462709378,2.79582,1810.5,1810.4,51.90114533]
[1746462709575,2.79582,1810.5,1810.4,40.8]
[1746462711079,2.79582,1810.5,1810.4,41.90478]
[1746462712375,2.79582,1810.5,1810.4,40.8]
[1746462712574,1.10478,1810.4,1810.3,2.663]
[1746462712868,1.10478,1810.4,1809.9,3.66]
[1746462712869,1.10502,1810.0,1809.9,2.663]
[1746462713065,1.10502,1810.0,1809.9,40.8]
[1746462713267,1.10514,1809.8,1809.7,1.10517]
[1746462713665,3.2225,1809.9,1809.7,11.10114533]
[1746462713875,2.73803,1809.9,1809.8,11.10114533]
[1746462714579,1.6329,1809.9,1809.8,1.10514]
[1746462714874,2.73798,1809.9,1809.8,1.10514]
[1746462715272,1.10517,1809.8,1809.7,1.10517]
[1746462715570,1.10521,1809.7,1809.6,50.72182]
[1746462715778,1.10521,1809.7,1809.6,48.22827]
[1746462715966,1.10521,1809.7,1809.6,55.66941533]
[1746462716167,1.10519,1809.8,1809.6,54.56414533]
[1746462716371,1.10521,1809.7,1809.6,55.66938533]
[1746462717779,1.10521,1809.7,1809.6,40.8]
[1746462718075,1.10551,1809.2,1809.1,5.8708]
[1746462718283,1.1055,1809.3,1809.2,12.20665533]
[1746462718473,1.1055,1809.3,1809.2,51.90114533]
[1746462718874,1.1055,1809.3,1809.2,40.8]
[1746462720584,1.5777,1809.4,1809.2,41.90546]
[1746462720784,1.10545,1809.3,1809.2,40.8]
[1746462720987,1.10545,1809.3,1809.2,41.90551]
[1746462721192,1.10545,1809.3,1809.2,40.8]
[1746462721887,2.76365,1809.3,1808.9,3.658]
[1746462722184,1.10559,1809.1,1809.0,1.10561]
[1746462722384,1.10563,1809.0,1808.9,4.76367]
[1746462722581,1.95833,1809.0,1808.9,1.10567]
[1746462722780,1.95833,1809.0,1808.9,12.20683533]
[1746462722980,0.8527,1809.0,1808.9,53.00683533]
[1746462723384,1.88652,1809.4,1809.2,1.10551]
[1746462723584,1.88652,1809.4,1809.2,1.10546]
[1746462723785,4.5117,1809.5,1809.3,11.10114533]
[1746462723786,0.8527,1809.5,1809.3,11.10114533]
[1746462723986,0.8527,1809.5,1809.4,12.20653533]
[1746462724284,1.95803,1809.5,1809.4,12.20653533]
[1746462724487,0.8527,1809.5,1809.4,12.20653533]
[1746462725376,1.95803,1809.5,1809.4,12.20653533]
[1746462725576,0.8527,1809.5,1809.4,12.20653533]
[1746462727587,2.5722,1809.5,1809.4,12.20653533]
[1746462727990,1.7195,1809.5,1809.4,12.20653533]
[1746462728796,1.10523,1809.7,1809.4,14.30894533]
[1746462729089,1.10527,1809.6,1809.5,13.77511533]
[1746462729484,2.74926,1809.7,1809.6,1.10527]
[1746462731394,1.10527,1809.6,1809.5,40.8]
[1746462731691,1.10533,1809.5,1809.4,2.663]
[1746462731886,1.89283,1809.5,1809.4,2.663]
[1746462732089,1.89283,1809.5,1809.4,43.463]
[1746462732285,1.89283,1809.5,1809.4,44.56839]
[1746462732991,1.89283,1809.5,1809.4,40.8]
[1746462733293,1.10545,1809.3,1809.2,2.663]
[1746462733497,1.10557,1809.1,1809.0,4.31341]
[1746462733797,5.20383,1809.4,1809.1,1.10557]
[1746462733798,2.73645,1809.2,1809.1,1.10557]
[1746462733984,1.6309,1809.2,1809.1,1.10557]
[1746462734186,0.8094,1809.4,1809.0,44.0078]
[1746462734393,1.6309,1809.4,1809.3,12.20659533]
[1746462735304,4.76514,1809.8,1809.7,1.10521]
[1746462735596,1.6533,1809.8,1809.7,1.10521]
[1746462735997,3.2078,1809.9,1809.7,12.69784533]
[1746462736292,5.31190044,1810.1,1810.0,1.10502]
[1746462736491,3.2078,1810.2,1810.0,11.10114533]
[1746462736700,3.2078,1810.2,1809.9,2.663]
[1746462736701,1.10502,1810.0,1809.9,3.49224]
[1746462736895,1.6533,1810.1,1810.0,12.20616533]
[1746462737293,1.91945,1810.3,1810.2,1.1049]
[1746462737487,3.51744,1810.3,1810.2,11.10114533]
[1746462737794,2.4126,1810.3,1810.2,1.1049]
[1746462737997,3.51747,1810.3,1810.2,1.1049]
[1746462738292,1.598,1810.3,1810.2,12.20604533]
[1746462738492,2.70284,1810.3,1810.2,12.20604533]
[1746462738893,6.86640044,1810.4,1810.3,1.10484]
[1746462739198,9.56918044,1810.4,1810.3,11.10114533]
[1746462739398,9.56918044,1810.4,1810.3,1.10484]
[1746462739600,8.46440044,1810.4,1810.3,1.10484]
[1746462739902,9.56918044,1810.4,1810.3,1.10484]
[1746462740800,5.91058,1810.4,1810.3,1.10484]
[1746462740997,3.2078,1810.4,1810.3,12.20598533]
[1746462741200,1.10478,1810.5,1810.4,1.10478]
[1746462741406,1.10468,1810.6,1810.5,1.10472]
[1746462741607,3.65403,1810.7,1810.6,1.10466]
[1746462741808,3.65403,1810.7,1810.6,4.31246]
[1746462742010,2.82603,1810.7,1810.6,4.31246]
[1746462742310,1.7214,1810.7,1810.6,4.31246]
[1746462742510,1.7214,1810.7,1810.6,5.95016]
[1746462742707,2.826,1810.7,1810.6,5.95016]
[1746462742909,2.826,1810.7,1810.6,4.8455]
[1746462743112,1.7214,1810.7,1810.4,4.31258]
[1746462743413,2.82604,1810.7,1810.6,1.10466]
[1746462743710,1.7214,1810.7,1810.6,53.00580533]
[1746462743911,1.1046,1810.7,1810.6,41.90466]
[1746462744114,1.91478,1810.8,1810.7,1.1046]
[1746462744411,2.82131,1810.9,1810.8,1.10453]
[1746462744606,2.82131,1810.9,1810.7,14.78269533]
[1746462744915,1.10453,1810.8,1810.7,14.78269533]
[1746462745212,2.82133,1810.8,1810.7,14.78269533]
[1746462745907,2.82133,1810.8,1810.7,13.67814533]
[1746462746108,1.1046,1810.7,1810.6,43.463]
[1746462746313,2.8214,1810.7,1810.6,43.463]
[1746462747113,2.8214,1810.7,1810.6,2.663]
[1746462747413,7.8214,1810.7,1810.6,2.663]
[1746462747808,1.10478,1810.4,1810.3,40.8]
[1746462748009,1.10478,1810.4,1810.3,51.90114533]
[1746462748504,1.10478,1810.4,1810.3,40.8]
[1746462748710,4.31258,1810.4,1810.3,40.8]
[1746462748911,1.10478,1810.4,1810.3,40.8]
[1746462749114,6.01638,1810.4,1810.3,40.8]
[1746462749308,2.80858,1810.4,1810.3,40.8]
[1746462749518,1.10478,1810.4,1810.3,41.90484]
[1746462750517,1.10478,1810.4,1810.3,43.62124]
[1746462750721,1.10478,1810.4,1810.3,42.5164]
[1746462751015,1.10478,1810.4,1810.3,40.8]
[1746462751419,1.10502,1810.0,1809.9,2.663]
[1746462751717,1.10502,1810.0,1809.9,11.10114533]
[1746462751905,1.10502,1810.0,1809.9,51.90114533]
[1746462752108,2.72702,1810.0,1809.9,51.90114533]
[1746462752310,2.72702,1810.0,1809.9,53.00622533]
[1746462752519,2.72702,1810.0,1809.9,51.90114533]
[1746462753312,3.59322,1810.0,1809.9,51.90114533]
[1746462754212,3.59322,1810.0,1809.9,40.8]
[1746462754413,5.25079,1810.0,1809.6,7.97004]
[1746462754617,1.10521,1809.7,1809.6,7.97004]
[1746462754922,1.10521,1809.7,1809.6,44.0078]
[1746462755124,1.10521,1809.7,1809.6,55.10894533]
[1746462755521,1.6061,1809.7,1809.6,57.85921533]
[1746462755715,3.2078,1810.1,1809.7,2.76302]
[1746462755928,1.10498,1810.1,1810.0,11.10114533]
[1746462756415,1.59,1810.2,1810.1,1.10496]
[1746462756621,1.59,1810.2,1810.1,14.77800533]
[1746462757232,3.65860044,1810.4,1810.3,1.10484]
[1746462757528,1.10478,1810.5,1810.4,1.10475]
[1746462757729,1.10478,1810.4,1810.3,4.31259]
[1746462758028,1.10478,1810.4,1810.3,6.04329]
[1746462758222,1.10478,1810.4,1810.3,56.83964533]
[1746462758530,1.92318,1810.4,1810.3,53.63184533]
[1746462758928,1.92318,1810.4,1810.3,51.90114533]
[1746462759328,9.4754,1810.4,1809.7,1.10515]
[1746462759525,1.10511,1809.9,1809.8,2.4179]
[1746462759726,4.45583,1810.3,1810.1,9.86700533]
[1746462760026,1.1049,1810.2,1810.1,1.10496]
[1746462760225,1.1049,1810.2,1809.9,3.2078]
[1746462760434,1.10496,1810.1,1810.0,9.86700533]
[1746462760630,3.61706,1810.1,1810.0,9.86700533]
[1746462760831,1.10502,1810.0,1809.9,3.2078]
[1746462761033,1.6937,1810.0,1809.7,3.2078]
[1746462761227,1.10527,1809.6,1809.5,6.97613]
[1746462761527,1.10527,1809.6,1809.5,2.663]
[1746462761829,1.10539,1809.4,1809.3,3.2078]
[1746462762034,1.10533,1809.5,1809.4,9.86700533]
[1746462762629,1.10539,1809.4,1809.3,41.90545]
[1746462762829,1.10539,1809.4,1809.3,51.77245533]
[1746462763032,2.73999,1809.4,1809.3,50.66700533]
[1746462763631,2.73999,1809.4,1809.3,40.8]
[1746462767638,1.10557,1809.1,1809.0,7.9716]
[1746462767831,1.10557,1809.1,1809.0,2.75723]
[1746462768139,1.10557,1809.1,1809.0,53.42423533]
[1746462768335,1.10549,1809.3,1809.1,1.10557]
[1746462768535,1.10549,1809.3,1809.2,10.97251533]
[1746462768937,1.10549,1809.3,1809.2,9.86700533]
[1746462769433,1.10549,1809.3,1809.2,10.97251533]
[1746462769840,1.10549,1809.3,1809.2,9.86700533]
[1746462770533,1.10551,1809.2,1809.1,4.31332]
[1746462771032,1.10551,1809.2,1809.1,14.18032533]
[1746462771233,3.2078,1809.6,1809.1,20.83873533]
[1746462771442,4.31307,1809.6,1809.5,9.86700533]
[1746462771736,6.00887,1809.6,1809.5,9.86700533]
[1746462772841,1.10533,1809.5,1809.4,0.7862]
[1746462773037,1.10545,1809.3,1809.2,2.663]
[1746462773434,1.10545,1809.3,1809.2,12.53000533]
[1746462773635,2.80125,1809.3,1809.2,13.63551533]
[1746462774044,2.80125,1809.3,1809.2,12.53000533]
[1746462774342,2.80125,1809.3,1809.2,13.63551533]
[1746462774848,2.80125,1809.3,1809.2,10.97251533]
[1746462775237,1.6958,1809.3,1809.2,10.97251533]
[1746462776341,1.10535,1809.5,1809.4,1.10539]
[1746462776845,2.75741,1809.6,1809.5,1.10533]
[1746462777045,2.75741,1809.6,1809.5,13.48143533]
[1746462779142,1.10531,1809.6,1809.5,13.48143533]
[1746462779943,3.57214,1809.7,1809.6,1.10527]
[1746462780245,2.71884,1809.7,1809.6,12.53267533]
[1746462780745,1.10511,1809.9,1809.8,1.10514]
[1746462780950,1.651,1810.1,1809.8,15.83767533]
[1746462781135,1.10499,1810.1,1810.0,10.97197533]
[1746462781340,7.66565,1810.2,1810.1,1.10496]
[1746462781548,7.66565,1810.2,1810.1,10.97196533]
[1746462781741,7.66565,1810.2,1810.1,1.10496]
[1746462781935,1.10496,1810.1,1810.0,2.66538]
[1746462782239,2.75596,1810.1,1810.0,2.66538]
[1746462782543,1.651,1810.1,1810.0,12.53238533]
[1746462782846,4.31272,1810.2,1810.1,1.10496]
[1746462783044,4.31272,1810.2,1810.1,10.97196533]
[1746462783654,4.31272,1810.2,1810.1,51.77196533]
[1746462784355,4.31272,1810.2,1810.1,50.66700533]
[1746462784545,4.31272,1810.2,1810.1,51.77196533]
[1746462785745,3.2078,1810.2,1810.1,51.77196533]
[1746462786051,4.3127,1810.2,1810.1,51.77196533]
[1746462786241,6.0354,1810.2,1810.1,51.77196533]
[1746462787345,1.10482,1810.4,1810.3,1.10484]
[1746462787652,1.10482,1810.4,1810.3,10.97184533]
[1746462788043,1.10482,1810.4,1810.3,12.56484533]
[1746462789547,1.10482,1810.4,1810.3,9.86700533]
[1746462790242,1.10482,1810.4,1810.3,10.97184533]
[1746462791653,1.10484,1810.3,1810.2,2.663]
[1746462791951,3.62934,1810.3,1810.2,2.663]
[1746462792151,3.62934,1810.3,1810.2,3.7679]
[1746462792339,3.62934,1810.3,1810.2,43.463]
[1746462792543,3.62934,1810.3,1810.2,44.5679]
[1746462792752,3.62934,1810.3,1810.2,40.8]
[1746462793154,1.10502,1810.0,1809.9,6.8848]
[1746462793354,1.10501,1810.1,1810.0,1.105]
[1746462793558,2.74551,1810.1,1810.0,9.86700533]
[1746462793849,2.74551,1810.1,1810.0,51.77202533]
[1746462794053,1.6405,1810.1,1810.0,10.97202533]
[1746462794354,1.10495,1810.2,1810.1,1.10494]
[1746462794555,2.4853,1810.2,1810.1,10.97194533]
[1746462795151,3.5902,1810.2,1810.1,10.97194533]
[1746462795751,1.10496,1810.1,1810.0,41.90498]
[1746462796054,2.70146,1810.1,1810.0,41.90498]
[1746462796455,1.5965,1810.1,1810.0,41.90498]
[1746462796644,2.70146,1810.1,1810.0,41.90498]
[1746462798457,2.70146,1810.1,1810.0,51.77198533]
[1746462798657,2.70146,1810.1,1810.0,50.66700533]
[1746462798959,2.70146,1810.1,1810.0,51.77202533]
[1746462800556,0.8217,1810.3,1810.1,1.10496]
[1746462800761,1.92658,1810.3,1810.2,10.97190533]
[1746462801054,1.10477,1810.5,1810.2,12.53000533]
[1746462801260,2.77707,1810.5,1810.4,10.97173533]
[1746462801657,2.77707,1810.5,1810.4,12.66223533]
[1746462802158,2.77707,1810.5,1810.4,15.87003533]
[1746462802853,2.77702,1810.5,1810.4,15.87003533]
[1746462803756,2.77702,1810.5,1810.4,14.76530533]
[1746462804061,2.77702,1810.5,1810.4,10.97178533]
[1746462804970,2.77702,1810.5,1810.4,9.86700533]
[1746462805267,1.10484,1810.3,1810.2,9.5468]
[1746462805466,1.10484,1810.3,1810.2,2.663]
[1746462806070,1.96124,1810.3,1810.2,2.663]
[1746462806274,1.96124,1810.3,1810.2,3.7679]
[1746462810973,1.1049,1810.2,1810.1,1.1049]
[1746462811272,2.807,1810.2,1810.1,10.97190533]
[1746462811573,2.807,1810.2,1810.1,1.1049]
[1746462812871,1.10496,1810.1,1810.0,45.11277]
[1746462813173,2.80706,1810.1,1810.0,40.8]
[1746462813374,2.80706,1810.1,1810.0,41.90502]
[1746462814372,2.80706,1810.1,1810.0,40.8]
[1746462814574,2.80706,1810.1,1810.0,41.90502]
[1746462815571,0.8564,1810.3,1810.0,53.87480533]
[1746462815772,1.6361,1810.4,1810.3,1.10477]
[1746462815975,2.7717,1810.6,1810.5,1.10472]
[1746462816162,1.6361,1810.6,1810.5,14.17952533]
[1746462816569,1.6361,1810.6,1810.5,15.82812533]
[1746462817575,5.29470044,1810.6,1810.5,15.82812533]
[1746462818076,3.65860044,1810.6,1810.5,22.22312533]
[1746462820871,2.80634,1810.8,1810.7,1.1046]
[1746462821078,2.80634,1810.8,1810.7,10.97160533]
[1746462821878,1.1046,1810.7,1810.6,1.10462]
[1746462822070,2.5076,1810.7,1810.6,10.97162533]
[1746462824267,3.6122,1810.7,1810.6,10.97162533]
[1746462824669,2.5076,1810.7,1810.6,10.97162533]
[1746462824970,3.6122,1810.7,1810.6,10.97162533]
[1746462825370,1.10466,1810.6,1810.5,6.97548]
[1746462825567,3.61696,1810.6,1810.5,6.97548]
[1746462825768,3.61696,1810.6,1810.5,4.31248]
[1746462826179,2.5123,1810.6,1810.5,4.31248]
[1746462827478,1.7062,1810.6,1810.5,14.17948533]
[1746462828379,1.7062,1810.6,1810.5,14.98578533]
[1746462829580,1.93298,1810.8,1810.7,1.1046]
[1746462829880,1.93298,1810.8,1810.7,4.3124]
[1746462830282,3.53108,1810.8,1810.7,4.3124]
[1746462831878,3.53108,1810.8,1810.7,1.1046]
[1746462832181,1.10464,1810.7,1810.6,1.1046]
[1746462832380,2.82234,1810.7,1810.6,10.97160533]
[1746462833382,1.7177,1810.7,1810.6,10.97160533]
[1746462833582,2.8223,1810.7,1810.6,10.97160533]
[1746462833782,1.7177,1810.7,1810.6,10.97160533]
[1746462834383,1.95512,1810.9,1810.8,1.10453]
[1746462834573,3.67282,1810.9,1810.8,10.97153533]
[1746462834778,2.5683,1810.9,1810.8,1.10453]
[1746462835084,1.7177,1810.9,1810.8,2.82533]
[1746462835286,1.7177,1810.9,1810.8,3.67403]
[1746462835779,1.7177,1810.9,1810.8,13.54103533]
[1746462837088,2.82217,1810.9,1810.8,12.69233533]
[1746462840289,2.82217,1810.9,1810.8,10.97153533]
[1746462841083,2.82217,1810.9,1810.7,5.8708]
[1746462841288,2.69543,1810.8,1810.7,16.84240533]
[1746462841483,2.69543,1810.8,1810.7,6.9754]
[1746462841793,2.69543,1810.8,1810.7,16.84240533]
[1746462842283,1.5909,1810.8,1810.7,16.84240533]
[1746462842683,2.69543,1810.8,1810.7,16.84240533]
[1746462843085,1.5909,1810.8,1810.7,16.84240533]
[1746462843484,2.69543,1810.8,1810.7,16.84240533]
[1746462843789,2.69543,1810.8,1810.7,14.17940533]
[1746462845291,1.5909,1810.8,1810.7,14.17940533]
[1746462845492,0.8539,1811.0,1810.9,1.10447]
[1746462845787,3.68091,1811.0,1810.9,10.97147533]
[1746462845994,3.68091,1811.0,1810.9,1.10447]
[1746462847389,3.68091,1811.0,1810.9,10.97147533]
[1746462851881,1.10447,1810.9,1810.8,3.2078]
[1746462852085,1.10447,1810.9,1810.8,10.97153533]
[1746462852086,2.82807,1810.9,1810.8,10.97153533]
[1746462852288,1.10453,1810.8,1810.7,2.663]
[1746462852490,2.82813,1810.8,1810.7,2.663]
[1746462853487,2.76163,1810.7,1810.3,2.5234]
[1746462853792,1.10484,1810.3,1810.2,7.96865]
[1746462854196,1.10484,1810.3,1810.2,14.17965533]
[1746462855194,3.67424,1810.3,1810.2,14.17965533]
[1746462855386,3.67424,1810.3,1810.2,4.31265]
[1746462855587,1.1049,1810.2,1810.1,19.4628989]
[1746462855787,2.8072,1810.2,1810.1,10.97193533]
[1746462855985,0.8671,1810.3,1810.2,1.1049]
[1746462856189,1.89362,1810.4,1810.3,1.10484]
[1746462856394,1.89362,1810.4,1810.3,10.97184533]
[1746462856594,3.50422,1810.4,1810.3,1.10484]
[1746462857394,3.50422,1810.4,1810.3,10.97184533]
[1746462857595,3.65860044,1810.8,1810.4,2.76195]
[1746462857893,6.39130044,1810.8,1810.7,10.97160533]
[1746462858291,6.39130044,1810.8,1810.7,1.1046]
[1746462858693,4.76320044,1810.8,1810.7,10.97160533]
[1746462859086,6.37380044,1810.8,1810.7,10.97160533]
[1746462861599,2.7152,1810.8,1810.7,10.97160533]
[1746462863095,1.10466,1810.6,1810.5,5.8708]
[1746462863295,1.10466,1810.6,1810.5,12.53000533]
[1746462863793,3.55616,1810.6,1810.5,2.663]
[1746462863995,3.55616,1810.6,1810.3,1.10481]
[1746462863996,1.10484,1810.3,1810.2,4.31269]
[1746462864194,1.10484,1810.3,1810.2,4.3127]
[1746462864395,1.10484,1810.3,1810.2,3.2078]
[1746462864597,1.10484,1810.3,1810.2,4.3127]
[1746462864894,1.95914,1810.3,1810.2,4.3127]
[1746462865600,1.10484,1810.3,1810.2,14.17970533]
[1746462866103,1.6277,1810.4,1810.3,1.10484]
[1746462866396,1.6277,1810.4,1810.3,12.64944533]
[1746462866598,1.10474,1810.5,1810.4,1.10478]
[1746462866800,1.10474,1810.5,1810.4,13.44718533]
[1746462867398,2.78424,1810.5,1810.4,13.44718533]
[1746462868606,2.78422,1810.5,1810.4,13.44718533]
[1746462869198,2.78422,1810.5,1810.4,16.65498533]
[1746462869400,3.65860044,1810.6,1810.5,1.10472]
[1746462869601,2.81195,1810.7,1810.6,1.10466]
[1746462869799,2.81195,1810.7,1810.6,10.97166533]
[1746462876907,2.81195,1810.7,1810.6,14.17946533]
[1746462877105,1.10455,1810.8,1810.7,1.1046]
[1746462877309,1.10455,1810.8,1810.7,13.52060533]
[1746462877809,2.77705,1810.8,1810.7,13.52060533]
[1746462878807,4.76052,1810.9,1810.7,13.52060533]
[1746462878998,8.06126044,1811.0,1810.9,1.10447]
[1746462879205,4.40266,1811.0,1810.9,10.97147533]
[1746462879498,4.40266,1811.0,1810.9,12.63377533]
[1746462883113,4.40266,1811.0,1810.9,10.97147533]
[1746462884513,3.2982,1811.0,1810.9,10.97147533]
[1746462884714,4.40261,1811.0,1810.9,10.97147533]
[1746462886612,1.10447,1810.9,1810.8,1.1045]
[1746462886810,1.10459,1810.8,1810.7,1.10453]
[1746462887209,1.10459,1810.8,1810.7,10.97153533]
[1746462888614,1.10459,1810.8,1810.7,9.86700533]
[1746462888919,1.10466,1810.6,1810.5,1.10467]
[1746462889111,1.10466,1810.6,1810.5,10.97167533]
[1746462889510,3.53906,1810.6,1810.5,10.97167533]
[1746462889711,3.53906,1810.6,1810.5,9.86700533]
[1746462889911,3.53906,1810.6,1810.5,10.97172533]
[1746462891517,3.53906,1810.6,1810.5,9.86700533]
[1746462891719,3.53906,1810.6,1810.5,10.97172533]
[1746462892417,3.53906,1810.6,1810.5,9.86700533]
[1746462893118,3.53906,1810.6,1810.5,10.97172533]
[1746462897122,2.4344,1810.6,1810.5,10.97172533]
[1746462897326,1.9405,1810.7,1810.6,1.10466]
[1746462897516,3.5066,1810.7,1810.6,12.57986533]
[1746462897712,3.5066,1810.7,1810.6,2.71286]
[1746462898218,3.5066,1810.7,1810.6,1.10466]
[1746462900326,1.10466,1810.6,1810.5,1.10467]
[1746462900529,2.69776,1810.6,1810.5,10.97167533]
[1746462901028,2.69776,1810.6,1810.5,9.86700533]
[1746462901829,2.69776,1810.6,1810.5,10.97172533]
[1746462902425,1.5931,1810.6,1810.5,10.97172533]
[1746462902817,7.19872,1810.9,1810.7,1.10453]
[1746462902818,1.10458,1810.8,1810.7,1.10453]
[1746462903020,3.63388,1810.8,1810.7,10.97153533]
[1746462904325,2.5293,1810.8,1810.7,10.97153533]
[1746462904533,3.63383,1810.8,1810.7,10.97153533]
[1746462907435,1.10453,1810.9,1810.8,1.10448]
[1746462907738,4.46053,1810.9,1810.8,10.97148533]
[1746462907940,4.46053,1810.9,1810.8,1.10448]
[1746462908441,1.714,1810.9,1810.8,1.10448]
[1746462908630,1.714,1810.9,1810.8,12.63708533]
[1746462909129,2.81847,1810.9,1810.8,12.63708533]
[1746462909328,1.714,1810.9,1810.6,6.8618]
[1746462909541,1.1046,1810.7,1810.6,14.17946533]
[1746462909940,3.5785,1810.7,1810.6,14.17946533]
[1746462910336,3.5785,1810.7,1810.6,10.97166533]
[1746462913439,1.6763,1810.7,1810.6,10.97166533]
[1746462913638,1.6763,1810.7,1810.6,11.83256533]
[1746462914050,3.65860044,1810.8,1810.7,1.1046]
[1746462914242,4.76313044,1810.8,1810.7,13.41400533]
[1746462914542,3.65860044,1810.8,1810.7,13.41400533]
[1746462914744,5.31910044,1810.8,1810.7,13.41400533]
[1746462915040,3.65860044,1810.8,1810.7,13.41400533]
[1746462916349,6.18180044,1811.0,1810.9,1.10447]
[1746462916547,5.31910044,1811.0,1810.9,10.97147533]
[1746462916948,6.42351044,1811.0,1810.9,13.39547533]
[1746462917349,5.31910044,1811.0,1810.9,13.39547533]
[1746462917942,6.42351044,1811.0,1810.9,12.60947533]
[1746462918447,6.42351044,1811.0,1810.9,10.97147533]
[1746462918643,6.42351044,1811.0,1810.9,1.10447]
[1746462918849,1.10453,1810.8,1810.7,4.57192]
[1746462919049,1.10453,1810.8,1810.7,14.43892533]
[1746462919249,1.10453,1810.8,1810.7,16.08272533]
[1746462919549,2.80583,1810.9,1810.8,1.10453]
[1746462921051,1.10453,1810.8,1810.7,2.663]
[1746462921250,4.25563,1810.8,1810.7,2.663]
[1746462922256,4.25563,1810.8,1810.7,3.7676]
[1746462923349,7.91423044,1810.8,1810.7,3.7676]
[1746462924453,3.65860044,1810.8,1810.7,15.26900533]
[1746462924644,3.65860044,1810.8,1810.7,16.10290533]
[1746462924849,5.37250044,1810.8,1810.7,13.43990533]
[1746462925151,3.65860044,1810.8,1810.7,13.43990533]
[1746462925754,3.65860044,1810.8,1810.7,18.43990533]
[1746462925957,3.65860044,1810.8,1810.7,13.43990533]
[1746462926557,1.6509,1811.0,1810.7,12.33530533]
[1746462926752,3.65860044,1811.1,1811.0,1.10441]
[1746462926950,3.65860044,1811.1,1811.0,10.97141533]
[1746462927150,5.30950044,1811.1,1811.0,13.49431533]
[1746462927552,3.65860044,1811.1,1811.0,14.35001533]
[1746462928248,3.65860044,1811.1,1811.0,55.15001533]
[1746462930557,1.6844,1811.2,1811.1,1.10435]
[1746462930853,1.6844,1811.2,1811.1,12.54515533]